Cogmind - Beta 14 @@@ ROGUE MODE // 2024.11.04 @ 17:35:09 Player: Shimmyarah Result: Destroyed by G-47 Trooper with Particle Gun Performance ------------- Evolutions (2) 1000 Regions Visited (4) 800 Robots Destroyed (46) 230 Value Destroyed (876) 876 Prototype IDs (2) 40 Alien Tech Used (0) 0 Bonus (40) 40 TOTAL SCORE: 2986 Bonus ------- High Alert Combat Kills 40 Cogmind --------- Core Integrity 0/550 Matter 150/300 Energy 97/100 System Corruption 2% Temperature Cool (9) Movement Core (150) Ox2 Location -8/Materials Parts ------- > --- POWER (2) -------- (None) > --- PROPULSION (2) --- (None) > --- UTILITY (3) ------ Advanced Visual Processing Unit Hardened Medium Armor Plating > --- WEAPON (4) ------- (None) > --- INVENTORY (5) ---- Hardened Medium Armor Plating Light EM Pulse Cannon Peak State ------------ > --- POWER ------------ Light Deuterium Engine > --- PROPULSION ------- Titanium Leg > --- UTILITY ---------- Improved Terrain Scanner > --- WEAPON ----------- Light EM Pulse Cannon Light EM Pulse Cannon Light EM Pulse Cannon Improved Datajack > --- INVENTORY -------- Light EM Pulse Cannon [Rating: 18] Favorites ----------- Power Heavy Ion Engine Engine Heavy Ion Engine Power Core Light Nuclear Core Propulsion Light Treads Treads Light Treads Leg Titanium Leg Wheel Wheel Utility Seismic Detector Device Seismic Detector Processor Targeting Computer Protection Hardened Medium Armor Plating Weapon Autogun Energy Gun Particle Gun Energy Cannon Light EM Pulse Cannon Ballistic Gun Autogun Launcher Rocket Launcher Special Melee Weapon Improved Datajack Build | -11 -10 -9 -9 -8 ------- Run | Yrd Mat Mat Min Mat Slots Evolved 4 | . . 2 . 2 Power 1 | . . . . 1 Propulsion . | . . . . . Utility 1 | . . . . 1 Weapon 2 | . . 2 . . Parts Attached 43 | 8 6 9 4 16 Power 5 | 1 . 1 1 2 Engine 4 | 1 . 1 1 1 Core 1 | . . . . 1 Reactor . | . . . . . Propulsion 4 | 2 . . . 2 Treads 2 | 2 . . . . Leg 1 | . . . . 1 Wheel 1 | . . . . 1 Hover . | . . . . . Flight . | . . . . . Utility 8 | 3 2 . . 3 Device 5 | 3 1 . . 1 Storage . | . . . . . Processor 2 | . 1 . . 1 Hackware . | . . . . . Protection 1 | . . . . 1 Artifact . | . . . . . Weapon 26 | 2 4 8 3 9 Energy Gun 8 | 1 3 2 2 . Energy Cannon 8 | . . . . 8 Ballistic Gun 6 | 1 1 4 . . Ballistic Cannon . | . . . . . Launcher 3 | . . 2 1 . Special Weapon . | . . . . . Impact Weapon . | . . . . . Slashing Weapon . | . . . . . Piercing Weapon . | . . . . . Special Melee Weapon 1 | . . . . 1 Unidentified Prototypes 2 | . . 2 . . Parts Lost 22 | . . . 12 10 Power 4 | . . . 1 3 Propulsion 3 | . . . 2 1 Utility 3 | . . . 2 1 Weapon 12 | . . . 7 5 Highest Loss Streak 12 | . . . 12 9 To Critical Strikes . | . . . . . Average Slot Usage (%) 87 | . 99 100 76 39 Engine 11 | . 14 11 11 6 Treads 19 | . 28 22 13 . Device 13 | . 21 11 8 6 Processor 7 | . 6 11 8 . Energy Gun 11 | . 14 14 11 . Energy Cannon 3 | . . . . 19 Ballistic Gun 13 | . 13 18 14 . Launcher 5 | . . 11 8 . Peak Build Rating 18 | 9 11 17 16 18 Average Rating 11 | 5 9 14 12 11 On Entrance 7 | . 9 9 16 3 Naked Turns 47 | . . . . 47 Heaviest Build 22 | 10 13 22 22 22 Greatest Support 40 | 40 40 40 40 17 Greatest Overweight (x) 7 | . . . 6 7 Average Overweight (x) . | . . . . 1 Largest Inventory Capacity 5 | 5 5 5 5 5 Average Capacity 5 | 5 5 5 5 5 Most Carried 5 | 5 5 5 5 4 Average Carried 2 | . 2 4 3 . Final Capacity 5 | 5 5 5 5 5 Final Carried 5 | . 5 5 1 2 Class Distribution -------------------- 44% | Mutant 43% | Gunner 11% | Skirmisher Dominant Class ---------------- Mutant | -10/Materials Gunner | -9/Materials Gunner | -9/Mines Skirmisher | -8/Materials Resources | -11 -10 -9 -9 -8 ----------- Run | Yrd Mat Mat Min Mat Matter Collected 992 | 337 119 416 62 58 Remotely 120 | 120 . . . . Salvage Created 1351 | 166 236 847 44 58 Parts 94 | 14 18 56 . 6 Haulers Intercepted 2 | . . 2 . . Recyclers Shooed 1 | . . 1 . . Parts Field Recycled . | . . . . . Retrieved Matter . | . . . . . Parts Self-Destructed . | . . . . . Prevented . | . . . . . Kills | -11 -10 -9 -9 -8 ------- Run | Yrd Mat Mat Min Mat Combat Hostiles Destroyed 31 | . 3 15 12 1 Guns 13 | . 3 8 2 . AOE 18 | . . 7 10 1 Classes Destroyed 11 | 3 3 3 2 . Worker 7 | 2 . 4 . 1 Tunneler 2 | 2 . . . . Hauler 2 | . . 2 . . Recycler 5 | 1 1 3 . . Operator 2 | . 1 1 . . Watcher 8 | . 3 5 . . Swarmer 7 | . 3 4 . . Grunt 8 | . . 7 . 1 Sentry 4 | . . 4 . . Demolisher 1 | . . . 1 . Assembled 11 | . . . 11 . Best Kill Streak 12 | 4 4 9 12 2 Combat Bots Only 12 | . 3 4 12 1 Max Kills in Single Turn 6 | 1 2 3 6 2 Gunslinging . | . . . . . Exploded 6 | . . 2 6 1 Melee . | . . . . . Uniques/NPCs Destroyed . | . . . . . Combat | -11 -10 -9 -9 -8 -------- Run | Yrd Mat Mat Min Mat Hostile Shots Fired 179 | . 8 43 52 76 Missed 47 | . 2 16 13 16 Damage Taken 3043 | . 50 499 1263 1231 Core 902 | . 14 64 262 562 Absorbed by Shields . | . . . . . Core Remaining (%) 70 | 100 94 . 18 . Volleys Fired 82 | 19 20 30 9 4 Largest 4 | 2 2 4 4 3 Hottest 168 | 60 88 166 144 168 Shots Fired 211 | 36 39 96 32 8 Gun 173 | 36 39 75 23 . Cannon 8 | . . . . 8 Launcher 30 | . . 21 9 . Special . | . . . . . Kinetic 105 | 19 20 52 14 . Thermal 66 | 17 19 21 9 . Explosive 30 | . . 21 9 . Electromagnetic 10 | . . 2 . 8 Robot Hit Streak 11 | 7 4 11 4 6 Robot Miss Streak 5 | 4 3 5 4 2 Penetration Max . | . . . . . Secondary Targets 3 | . 2 1 . . Max Gunslinging Chain 1 | . 1 1 . . Shots Hit Robots 108 | 17 19 52 12 8 Core Hits 89 | 6 10 43 24 6 Critical Kills 1 | . 1 . . . Critical Parts Destroyed . | . . . . . Critical Strikes 2 | . 1 1 . . Burn 1 | . . 1 . . Destroy 1 | . 1 . . . Melee Attacks 4 | . . . . 4 Impact . | . . . . . Slashing . | . . . . . Piercing . | . . . . . Sneak Attacks . | . . . . . Combat Hostiles . | . . . . . Follow-up Attacks . | . . . . . Damage Inflicted 3545 | 208 284 1855 817 381 Guns 1299 | 208 284 653 154 . Cannons 119 | . . . . 119 Explosions 2076 | . . 1202 663 211 Melee . | . . . . . Ramming 51 | . . . . 51 Kinetic 753 | 105 160 446 42 . Thermal 757 | 103 124 207 112 211 Explosive 1865 | . . 1202 663 . Electromagnetic 119 | . . . . 119 Impact . | . . . . . Slashing . | . . . . . Piercing . | . . . . . Highest Corruption 18 | . . . 18 2 Average Corruption 4 | . . . 18 2 Corruption Purged . | . . . . . Corruption Blocked . | . . . . . Effects 3 | . . . 3 . Data Loss (minor) 1 | . . . 1 . Misdirections 2 | . . . 2 . Overload Shots . | . . . . . Overflow Damage 65 | . . 34 31 . Projectiles . | . . . . . Explosions 65 | . . 34 31 . Melee . | . . . . . Knockbacks . | . . . . . Impact . | . . . . . Kinetic . | . . . . . Secondary . | . . . . . Self-Inflicted Damage 304 | . . 155 95 54 Shots 11 | . . 5 5 1 Rammed 28 | . . . . 28 Targets Rammed 28 | . . . . 28 Kicked . | . . . . . Crushed . | . . . . . Highest Temperature 526 | 20 152 328 526 120 Average Temperature 113 | 19 60 101 282 40 Received Heat Transfer 545 | . . 156 20 369 Effects 7 | . . 2 5 . Shutdowns 1 | . . . 1 . Interference 4 | . . 2 2 . Matter Decay 1 | . . . 1 . Short Circuit 1 | . . . 1 . Siege Activations . | . . . . . Robots Corrupted . | . . . . . Combat Hostiles . | . . . . . Parts Fried . | . . . . . Impact Corruptions . | . . . . . Robots Melted . | . . . . . Combat Hostiles . | . . . . . Parts Melted 3 | . . 3 . . Heat Transferred 1536 | 225 297 555 259 200 Parts Sabotaged . | . . . . . Parts Stolen . | . . . . . Parts Stripped . | . . . . . Power Chain Reactions 1 | . . . . 1 Alert | -11 -10 -9 -9 -8 ------- Run | Yrd Mat Mat Min Mat Peak Influence 581 | 25 96 581 272 106 Initial 226 | . 16 15 226 68 Average 151 | 9 22 304 226 66 Maximum Alert Level 2 | . . 2 1 . Low Security (%) 64 | 100 100 21 18 100 Level 1 19 | . . 38 81 . Level 2 15 | . . 40 . . Level 3 . | . . . . . Level 4 . | . . . . . Level 5 . | . . . . . High Security . | . . . . . Max Security . | . . . . . Squads Dispatched 5 | . 1 2 1 1 Investigation . | . . . . . Extermination . | . . . . . Reinforcement 5 | . 1 2 1 1 Assault . | . . . . . Garrison . | . . . . . Intercept . | . . . . . Searches Triggered . | . . . . . Construction Impeded 1 | . . . 1 . Haulers Reinforced . | . . . . . Active Scanning Responses . | . . . . . Cargo Convoy Interrupts . | . . . . . Stealth | -11 -10 -9 -9 -8 --------- Run | Yrd Mat Mat Min Mat Distress Signals 2 | . . 2 . . Communications Jammed . | . . . . . Distress Signals . | . . . . . Times Spotted 67 | . 8 22 22 15 Peak Tracking Total 18 | . 3 5 18 6 Tactical Retreats 5 | . . 1 . 4 Traps | -11 -10 -9 -9 -8 ------- Run | Yrd Mat Mat Min Mat Traps Triggered . | . . . . . Indirectly . | . . . . . Trap Hack Attempts . | . . . . . Triggered . | . . . . . Disarmed . | . . . . . Reprogrammed . | . . . . . Reused . | . . . . . Traps Extracted . | . . . . . Installed . | . . . . . Triggered . | . . . . . Machines | -11 -10 -9 -9 -8 ---------- Run | Yrd Mat Mat Min Mat Machines Disabled 6 | . . 5 . 1 Max in Single Turn 2 | . . 2 . 1 Machines Repaired . | . . . . . Machines Dismantled . | . . . . . Machines Sabotaged . | . . . . . Overloaded Fab Kills . | . . . . . Hacking | -11 -10 -9 -9 -8 --------- Run | Yrd Mat Mat Min Mat Machines Accessed 2 | . 1 1 . . Terminals 1 | . 1 . . . Fabricators . | . . . . . Repair Stations 1 | . . 1 . . Recycling Units . | . . . . . Scanalyzers . | . . . . . Garrison Access . | . . . . . Total Hacks 2 | . 1 1 . . Successful 1 | . 1 . . . Failed 1 | . . 1 . . Catastrophic . | . . . . . Database Lockouts . | . . . . . Manual . | . . . . . Terminals 1 | . 1 . . . Fabricators . | . . . . . Repair Stations 1 | . . 1 . . Recycling Units . | . . . . . Scanalyzers . | . . . . . Garrison Access . | . . . . . Terminal Hacks 1 | . 1 . . . Dispatch Records 1 | . 1 . . . Fabricator Hacks . | . . . . . Repair Station Hacks . | . . . . . Recycling Unit Hacks . | . . . . . Scanalyzer . | . . . . . Garrison Access Hacks . | . . . . . Unauthorized Hacks . | . . . . . Terminals . | . . . . . Fabricators . | . . . . . Repair Stations . | . . . . . Recycling Units . | . . . . . Scanalyzers . | . . . . . Garrison Access . | . . . . . Data Cores Recovered 1 | . 1 . . . Used 1 | . 1 . . . Hacking Detections . | . . . . . Full Trace Events . | . . . . . Feedback Events . | . . . . . Feedback Blocked . | . . . . . Robot Schematics Acquired . | . . . . . Robots Built . | . . . . . Authchips . | . . . . . Time . | . . . . . Total Robot Build Rating . | . . . . . Part Schematics Acquired . | . . . . . Parts Built . | . . . . . Authchips . | . . . . . Time . | . . . . . Total Part Build Rating . | . . . . . Parts Repaired . | . . . . . Time . | . . . . . Parts Recycled . | . . . . . Recycled Matter . | . . . . . Retrieved Matter . | . . . . . Retrieved Components . | . . . . . Parts Scanalyzed . | . . . . . Part Schematics Acquired . | . . . . . Parts Damaged . | . . . . . Bothacking | -11 -10 -9 -9 -8 ------------ Run | Yrd Mat Mat Min Mat Used RIF Installer . | . . . . . Robots Hacked 1 | . . . . 1 Non-combat . | . . . . . Combat 1 | . . . . 1 Robot Hacks Applied 1 | . . . . 1 parse_system 1 | . . . . 1 Relay Couplers Released . | . . . . . Fabnet Peak Effective % . | . . . . . Robots Rewired . | . . . . . Allies Hacked . | . . . . . Hacks Repelled . | . . . . . Allies | -11 -10 -9 -9 -8 -------- Run | Yrd Mat Mat Min Mat Total Allies . | . . . . . Largest Group . | . . . . . Highest-Rated Group . | . . . . . Highest-Rated Ally . | . . . . . Total Orders . | . . . . . Ally Attacks . | . . . . . Total Damage . | . . . . . Kills . | . . . . . Allies Corrupted . | . . . . . Allies Melted . | . . . . . Intel | -11 -10 -9 -9 -8 ------- Run | Yrd Mat Mat Min Mat Robot Analysis Total . | . . . . . Derelict Logs Recovered . | . . . . . Drone Launches . | . . . . . Drone Recoveries . | . . . . . Exploration | -11 -10 -9 -9 -8 ------------- Run | Yrd Mat Mat Min Mat Turns Passed 1985 | 178 582 791 106 328 Spaces Moved 1050 | 88 319 423 47 173 Core 161 | 30 . . 17 114 Treads 830 | 58 319 423 30 . Legs 59 | . . . . 59 Wheels . | . . . . . Hover . | . . . . . Flight . | . . . . . Fastest Speed 50 | 50 160 160 100 50 Average Speed 154 | 122 160 160 158 145 Slowest Speed 400 | 160 160 160 350 400 Overloaded Moves . | . . . . . Propulsion Burnouts . | . . . . . Robots Hopped . | . . . . . Cave-ins Triggered 1 | . . . 1 . Exploration Rate (%) 21 | 5 44 32 16 12 Regions Visited 4 Branch Regions 1 Pre-discovered Areas . | . . . . . Known Exits Taken . | . . . . . Unknown Exits Taken 4 | 1 1 1 1 . Scrap Searched . | . . . . . Spaces Dug . | . . . . . Terrain Destroyed 235 | . . 154 79 2 Melee . | . . . . . Projectile . | . . . . . AOE 235 | . . 154 79 2 Terrain Rammed . | . . . . . Walls Destroyed . | . . . . . Machines Disabled . | . . . . . Actions | -11 -10 -9 -9 -8 --------- Run | Yrd Mat Mat Min Mat Total 1256 | 123 354 479 59 241 Wait . | . . . . . Move 1046 | 87 318 422 46 173 Hop . | . . . . . Pick Up 41 | 8 7 10 . 16 Fast Attach . | . . . . . Attach 30 | 8 1 2 4 15 Detach 1 | . 1 . . . Swap 13 | . 5 7 . 1 Drop 11 | 1 2 8 . . Fire 82 | 19 20 30 9 4 Melee 4 | . . . . 4 Ram 28 | . . . . 28 Kick . | . . . . . Crush . | . . . . . Escape Stasis . | . . . . . Rewire . | . . . . . Trap . | . . . . . Miscellaneous . | . . . . . Route ------- -11/Scrapyard -10/Materials (discovered 2 exits: *Mat / [*Min]) -9/Materials -9/Mines -8/Materials History --------- Turn | Location | Event 2 | -11/Scrapyard | Met Revision 17 8 | -11/Scrapyard | Discovered new exit (range 13) 179 | -11/Scrapyard | Entered Materials 302 | -10/Materials | Build established: Mutant 616 | -10/Materials | Discovered new exit (range 11) 719 | -10/Materials | Discovered new exit (range 15) 761 | -10/Materials | Entered another Materials area 761 | -9/Materials | Evolved 2 slots: Weapon x2 1061 | -9/Materials | Build established: Gunner 1171 | -9/Materials | Discovered new exit (range 16) 1552 | -9/Materials | Entered Mines 1559 | -9/Mines | Met a Derelict bent on vengeance 1574 | -9/Mines | Assembled infested the area 1616 | -9/Mines | Discovered new exit (range 9) 1626 | -9/Mines | Core integrity fell below 50% 1638 | -9/Mines | Crushed by falling debris 1638 | -9/Mines | System corruption reached 10% 1640 | -9/Mines | Destroyed 12 combat bots 1657 | -9/Mines | Core integrity fell below 20% 1658 | -9/Mines | Entered Materials 1658 | -8/Materials | Evolved 2 slots: Power x1, Utility x1 1685 | -8/Materials | Lost 12 parts (1p2n2u7w) 1905 | -8/Materials | Core integrity fell below 50% 1936 | -8/Materials | Lost 9 parts (3p1n1u4w) 1956 | -8/Materials | Core integrity fell below 20% 1986 | -8/Materials | Destroyed by G-47 Trooper with Particle Gun Last Messages --------------- 01950_ Broken Lgt. EM Pulse Cannon severed. 01951_ Acquired Broken Lgt. EM Pulse Cannon. 01952_ Slammed into L-31 Rogue. 01954_ M-13 Machinist repairs G-47 Trooper. 01955_ Slammed into L-31 Rogue. 01956_ M-13 Machinist repairs Aluminum Leg. 01957_ Slammed into L-31 Rogue. 01959_ R-06 Scavenger collects Lgt. EM Pulse Cannon. 01968_ O-16 Technician: "IFF HANDSHAKE FAILED. SECURING TERMINAL." 01972_ Slug penetrates Wall. 01975_ Acquired Hrd. Medium Armor Plating. 01978_ Acquired Adv. Visual Processing Unit. 01979_ Slug penetrates Neutrino Reactor. 01980_ ALERT: Hostiles spotted, dispatching reinforcements to Terminal M008. 01981_ Acquired Hrd. Medium Armor Plating. 01982_ Slug penetrates Neutrino Reactor. 01984_ Critical hit (Burn: +37). Map ----- +----------------------------------------------------+ | ??????????????????????????????????????????????? ?? | | ?????????????????????????????????????????"???????? | | ????????????????????????????????????????????????#? | | ?????????????????????????????????????????????????? | | ?????????????????????????????????????#?????? ????? | | ?????????????????????????????????????????????????? | | ?????????????????????????????????????? ??#???????# | | ?????????????????????????????????????? ? ??????? ? | | ???????????????????????????????#?????? ??? ???? | | ????????????????????????????????????? ?????? ?? | | ????????????????????????????????????? #?? ????? | | ????????????????????????????????????? #???? ?? | | ????????????????????????????????????? #? ?? ??? | | ???????????????????????????????#?????# ##?#??#?? | | ????????????????+##??????????#????#??# ######### | | ????????????? ???????????#????## ## ## | | ?????????????? ################## u## # | | ??????????????? w ! k u w ## + | | ????????????????# h ## # | | ????????????????# """ ## # | | ????????????????# """ "" ## # | | ????????????????# """ "" m ## # | | ????????????????# T" ####+### | | ????????????????# l "" | | ????????????????# "" k | | ????????????????# @ g #### | | ????????????????# #?########## | | ????????????????# ###########+### #????###??# | | ????????????????# ????????????????# #?##????#?# | | ??????????????????????????????????# #???????#?# | | ????????????????????????????????? # #??#??????# | | ??????????????????????????????????# #?#?#?????# | | ??????????????????????????????????# #????????## | | ?????????????????????????????????? #??#?????## | | ?????????????????????????????????? #????#?#??# | | ?????????????????????????????????? #?????????# | | ?????????????????????????????????## #????????### | | ??????????????????????????????????# #??##???##?? | | ??????????????????????????????????# #?????#????? | | ??????????????????????????????????? #??????????? | | ??????????????????????????????????? ???????????? | | ?????????????????????????????????????????????????? | | ?????????????????????????????????????????????????? | | ?????????????????????????????????????????????????? | | ?????????????????????????????????????????????????? | | ?????????????????????????????????????????????????? | | ?????????????????????????????????????????????????? | | ?????????????????????????????????????????????????? | | ?????????????????????????????????????????????????? | | ?????????????????????????????????????????????????? | +----------------------------------------------------+ Best States ------------- Heat Dissipation 31 Energy Generation 14 Energy Capacity 280 Matter Stores 300 Matter Capacity 300 Sight Range 16 Terrain Scan Range 16 Terrain Scan Density 10 Armor Coverage 225 Evasion (%) 50 Targeting Accuracy 5 Recoil Reduction 2 Item Schematics ----------------- None Robot Schematics ------------------ None Fabricated ------------ Nothing Alien Tech Used ----------------- None Achievements -------------- Dynamic Key I Survived The Infestation Quick And Dirty Remodeling System Compromised Use The Force Challenges ------------ None Game ------ Seed AntigravAssaultVibroblade Manual? 0 Play Time 00:33:46 Cumulative 8.1 hours Start 2024.11.04 @ 16:55:02 End 2024.11.04 @ 17:35:09 Sessions 1 Manual Loads 0 Difficulty Rogue Special Mode None Game No. 18 Rogue 18 Adventurer 0 Explorer 0 Win Type - Total 0 Types 0/0/0/0/0/0/0/0/0 Lore% 6 Gallery% 10 Achievement% 10 Wizard Run 0 Options --------- Layout 2 ASCII 0 Keyboard 0 Movement Arrows Keybinds 0 Fullscreen 2 Font 24/Smallcaps Map View 25x24 Zoom Use 55% Tactical HUD 1 Map Filters NONE Filters NONE Steam 1 RUN: eb4dccd6-5c50-42da-adea-9c1b95f273ed